[Event "Titled Tuesday Blitz December 27 Late 2022"]
[White "Can, Melih Kaan"]
[Black "Gasanov, Eldar"]
[WhiteFideId "6317383"]
[BlackFideId "14104466"]
[WhiteElo "2069"]
[BlackElo "2481"]
[Result "0-1"]
[Round "02"]
[TimeControl "180+2"]
[Date "2022.12.27"]
[WhiteClock "0:00:05"]
[BlackClock "0:00:19"]

1. e4 {[%clk 0:03:00]}  c5 {[%clk 0:03:00]} 2. Nf3 {[%clk 0:03:00]}  Nc6 {[%clk 0:03:00]} 3. c3 {[%clk 0:03:00]}  e5 {[%clk 0:03:00]} 4. Bc4 {[%clk 0:02:59]}  Nf6 {[%clk 0:03:00]} 5. Qe2 {[%clk 0:02:53]}  Be7 {[%clk 0:03:00]} 6. O-O {[%clk 0:02:54]}  O-O {[%clk 0:03:00]} 7. Rd1 {[%clk 0:02:54]}  d6 {[%clk 0:02:59]} 8. h3 {[%clk 0:02:53]}  Na5 {[%clk 0:02:46]} 9. Bd3 {[%clk 0:02:47]}  Re8 {[%clk 0:02:42]} 10. Bc2 {[%clk 0:02:47]}  Bf8 {[%clk 0:02:42]} 11. d4 {[%clk 0:02:46]}  exd4 {[%clk 0:02:40]} 12. cxd4 {[%clk 0:02:44]}  Bf5 {[%clk 0:02:33]} 13. Nc3 {[%clk 0:02:42]}  Qc8 {[%clk 0:02:16]} 14. Bg5 {[%clk 0:02:38]}  Nxe4 {[%clk 0:02:06]} 15. Bxe4 {[%clk 0:01:41]}  Bxe4 {[%clk 0:02:05]} 16. Nxe4 {[%clk 0:01:42]}  d5 {[%clk 0:01:58]} 17. Ne5 {[%clk 0:01:08]}  dxe4 {[%clk 0:01:37]} 18. Qxe4 {[%clk 0:01:09]}  cxd4 {[%clk 0:01:30]} 19. Qd5 {[%clk 0:01:01]}  Qf5 {[%clk 0:01:17]} 20. f4 {[%clk 0:00:39]}  Nc6 {[%clk 0:01:14]} 21. g4 {[%clk 0:00:37]}  Qe6 {[%clk 0:00:54]} 22. Qxe6 {[%clk 0:00:35]}  Rxe6 {[%clk 0:00:55]} 23. Nxc6 {[%clk 0:00:32]}  Rxc6 {[%clk 0:00:52]} 24. Rd2 {[%clk 0:00:30]}  Bb4 {[%clk 0:00:45]} 25. Rd3 {[%clk 0:00:22]}  Rc2 {[%clk 0:00:42]} 26. a3 {[%clk 0:00:22]}  Bd2 {[%clk 0:00:37]} 27. b4 {[%clk 0:00:17]}  Re8 {[%clk 0:00:28]} 28. Rd1 {[%clk 0:00:17]}  Be3+ {[%clk 0:00:27]} 29. Kh1 {[%clk 0:00:15]}  h6 {[%clk 0:00:22]} 30. Bh4 {[%clk 0:00:16]}  b5 {[%clk 0:00:20]} 31. Bg3 {[%clk 0:00:15]}  Re4 {[%clk 0:00:21]} 32. f5 {[%clk 0:00:15]}  h5 {[%clk 0:00:21]} 33. gxh5 {[%clk 0:00:12]}  Kh7 {[%clk 0:00:21]} 34. Bh2 {[%clk 0:00:10]}  Rh4 {[%clk 0:00:20]} 35. Be5 {[%clk 0:00:05]}  Rxh3+ {[%clk 0:00:19]} 0-1


[Site "https://www.chess.com"]

[Event "Titled Tuesday Blitz December 27 Late 2022"]
[White "Carbone, Diego"]
[Black "Shapiro, Daniel"]
[WhiteFideId "3002179"]
[BlackFideId "2001780"]
[WhiteElo "2336"]
[BlackElo "2284"]
[Result "0-1"]
[Round "02"]
[TimeControl "180+2"]
[Date "2022.12.27"]
[WhiteClock "0:00:05"]
[BlackClock "0:00:28"]

1. d4 {[%clk 0:03:00]}  Nf6 {[%clk 0:02:59]} 2. c4 {[%clk 0:03:01]}  e6 {[%clk 0:02:58]} 3. g3 {[%clk 0:03:02]}  d5 {[%clk 0:02:56]} 4. Bg2 {[%clk 0:03:00]}  Bb4+ {[%clk 0:02:55]} 5. Bd2 {[%clk 0:03:00]}  Be7 {[%clk 0:02:55]} 6. Nf3 {[%clk 0:03:00]}  O-O {[%clk 0:02:55]} 7. O-O {[%clk 0:03:00]}  c6 {[%clk 0:02:55]} 8. Qc2 {[%clk 0:03:01]}  b6 {[%clk 0:02:56]} 9. Bf4 {[%clk 0:03:01]}  Ba6 {[%clk 0:02:56]} 10. b3 {[%clk 0:02:51]}  Nbd7 {[%clk 0:02:53]} 11. Rd1 {[%clk 0:02:46]}  Rc8 {[%clk 0:02:49]} 12. a4 {[%clk 0:02:36]}  Ne4 {[%clk 0:02:31]} 13. Nc3 {[%clk 0:02:13]}  f5 {[%clk 0:02:27]} 14. h4 {[%clk 0:02:05]}  h6 {[%clk 0:02:23]} 15. a5 {[%clk 0:02:02]}  b5 {[%clk 0:01:42]} 16. c5 {[%clk 0:01:23]}  b4 {[%clk 0:01:41]} 17. Nxe4 {[%clk 0:00:44]}  fxe4 {[%clk 0:01:40]} 18. Ne5 {[%clk 0:00:42]}  Qe8 {[%clk 0:01:17]} 19. Nxd7 {[%clk 0:00:35]}  Qxd7 {[%clk 0:01:17]} 20. Qd2 {[%clk 0:00:35]}  Rf7 {[%clk 0:01:01]} 21. Bf1 {[%clk 0:00:35]}  Rcf8 {[%clk 0:01:01]} 22. e3 {[%clk 0:00:33]}  g5 {[%clk 0:00:59]} 23. hxg5 {[%clk 0:00:31]}  hxg5 {[%clk 0:01:00]} 24. Bxa6 {[%clk 0:00:29]}  gxf4 {[%clk 0:00:58]} 25. exf4 {[%clk 0:00:30]}  e5 {[%clk 0:00:53]} 26. dxe5 {[%clk 0:00:27]}  Bxc5 {[%clk 0:00:53]} 27. Rac1 {[%clk 0:00:23]}  e3 {[%clk 0:00:44]} 28. fxe3 {[%clk 0:00:19]}  Be7 {[%clk 0:00:38]} 29. Qd3 {[%clk 0:00:15]}  Rg7 {[%clk 0:00:37]} 30. Kg2 {[%clk 0:00:12]}  Qg4 {[%clk 0:00:34]} 31. e4 {[%clk 0:00:12]}  Qxf4 {[%clk 0:00:33]} 32. Rf1 {[%clk 0:00:11]}  Qxe5 {[%clk 0:00:33]} 33. Rxf8+ {[%clk 0:00:11]}  Bxf8 {[%clk 0:00:33]} 34. exd5 {[%clk 0:00:11]}  Bd6 {[%clk 0:00:33]} 35. Kf1 {[%clk 0:00:04]}  Rxg3 {[%clk 0:00:30]} 36. Qe2 {[%clk 0:00:04]}  Qf4+ {[%clk 0:00:28]} 37. Ke1 {[%clk 0:00:02]}  Qxc1+ {[%clk 0:00:28]} 38. Kf2 {[%clk 0:00:01]}  Qf4+ {[%clk 0:00:29]} 39. Ke1 {[%clk 0:00:02]}  Re3 {[%clk 0:00:29]} 40. dxc6 {[%clk 0:00:02]}  Rxe2+ {[%clk 0:00:29]} 41. Bxe2 {[%clk 0:00:03]}  Qc1+ {[%clk 0:00:28]} 42. Kf2 {[%clk 0:00:04]}  Qxc6 {[%clk 0:00:28]} 43. Bc4+ {[%clk 0:00:04]}  Kg7 {[%clk 0:00:28]} 44. a6 {[%clk 0:00:05]} 0-1


[Site "https://www.chess.com"]

[Event "Titled Tuesday Blitz December 27 Late 2022"]
[White "Curtis, John"]
[Black "Solon, Nathan"]
[WhiteFideId "3200256"]
[BlackFideId "2017229"]
[WhiteElo "2292"]
[BlackElo "2306"]
[Result "0-1"]
[Round "02"]
[TimeControl "180+2"]
[Date "2022.12.27"]
[WhiteClock "0:00:04"]
[BlackClock "0:01:17"]

1. e4 {[%clk 0:03:00]}  c5 {[%clk 0:02:54]} 2. Nf3 {[%clk 0:03:00]}  e6 {[%clk 0:02:54]} 3. d4 {[%clk 0:02:59]}  cxd4 {[%clk 0:02:55]} 4. Nxd4 {[%clk 0:02:59]}  Nf6 {[%clk 0:02:55]} 5. Nc3 {[%clk 0:02:58]}  Nc6 {[%clk 0:02:55]} 6. Nxc6 {[%clk 0:02:58]}  bxc6 {[%clk 0:02:56]} 7. Bd3 {[%clk 0:02:55]}  d5 {[%clk 0:02:56]} 8. O-O {[%clk 0:02:47]}  Bd6 {[%clk 0:02:55]} 9. Qe2 {[%clk 0:02:47]}  Qc7 {[%clk 0:02:54]} 10. exd5 {[%clk 0:02:29]}  Nxd5 {[%clk 0:02:52]} 11. Nxd5 {[%clk 0:02:24]}  cxd5 {[%clk 0:02:52]} 12. Bb5+ {[%clk 0:02:22]}  Bd7 {[%clk 0:02:52]} 13. Bxd7+ {[%clk 0:02:20]}  Qxd7 {[%clk 0:02:53]} 14. c4 {[%clk 0:02:00]}  d4 {[%clk 0:02:53]} 15. Qe4 {[%clk 0:01:58]}  O-O {[%clk 0:02:52]} 16. f4 {[%clk 0:01:47]}  Rac8 {[%clk 0:02:47]} 17. b3 {[%clk 0:01:41]}  d3 {[%clk 0:02:35]} 18. Be3 {[%clk 0:01:36]}  Bb4 {[%clk 0:02:24]} 19. Rad1 {[%clk 0:01:10]}  Rfd8 {[%clk 0:02:22]} 20. Bd2 {[%clk 0:00:44]}  Bc5+ {[%clk 0:02:12]} 21. Be3 {[%clk 0:00:35]}  Bb4 {[%clk 0:02:11]} 22. Bd2 {[%clk 0:00:35]}  Bf8 {[%clk 0:02:08]} 23. h3 {[%clk 0:00:27]}  f5 {[%clk 0:01:57]} 24. Qe1 {[%clk 0:00:19]}  Qd4+ {[%clk 0:01:49]} 25. Kh1 {[%clk 0:00:14]}  Rc6 {[%clk 0:01:44]} 26. Rf3 {[%clk 0:00:13]}  Bc5 {[%clk 0:01:31]} 27. Bc3 {[%clk 0:00:08]}  Qe4 {[%clk 0:01:30]} 28. Qf1 {[%clk 0:00:04]}  Rcd6 {[%clk 0:01:17]} 0-1


[Site "https://www.chess.com"]

[Event "Titled Tuesday Blitz December 27 Late 2022"]
[White "Deac, Bogdan-Daniel"]
[Black "Msellek, Ilyass"]
[WhiteFideId "1226380"]
[BlackFideId "675938"]
[WhiteElo "2700"]
[BlackElo "2420"]
[Result "1-0"]
[Round "02"]
[TimeControl "180+2"]
[Date "2022.12.27"]
[WhiteClock "0:00:18"]
[BlackClock "0:00:03"]

1. b3 {[%clk 0:03:00]}  e5 {[%clk 0:02:48]} 2. Bb2 {[%clk 0:03:00]}  Nc6 {[%clk 0:02:48]} 3. Nf3 {[%clk 0:03:00]}  d6 {[%clk 0:02:40]} 4. c4 {[%clk 0:03:00]}  f5 {[%clk 0:02:39]} 5. e3 {[%clk 0:02:57]}  Nf6 {[%clk 0:02:38]} 6. d3 {[%clk 0:02:55]}  Be7 {[%clk 0:02:35]} 7. g3 {[%clk 0:02:55]}  O-O {[%clk 0:02:34]} 8. Bg2 {[%clk 0:02:55]}  a5 {[%clk 0:02:35]} 9. Nc3 {[%clk 0:02:54]}  Qe8 {[%clk 0:02:29]} 10. O-O {[%clk 0:02:54]}  Qh5 {[%clk 0:02:17]} 11. Nd2 {[%clk 0:02:45]}  Qh6 {[%clk 0:02:03]} 12. Nd5 {[%clk 0:02:44]}  Nxd5 {[%clk 0:01:54]} 13. Bxd5+ {[%clk 0:02:40]}  Kh8 {[%clk 0:01:54]} 14. a3 {[%clk 0:02:36]}  Be6 {[%clk 0:01:51]} 15. f4 {[%clk 0:02:31]}  exf4 {[%clk 0:01:44]} 16. gxf4 {[%clk 0:02:30]}  Bxd5 {[%clk 0:01:38]} 17. cxd5 {[%clk 0:02:29]}  Nb8 {[%clk 0:01:39]} 18. Rc1 {[%clk 0:02:28]}  Na6 {[%clk 0:01:39]} 19. Nf3 {[%clk 0:02:27]}  Bf6 {[%clk 0:01:39]} 20. Bd4 {[%clk 0:02:15]}  Rae8 {[%clk 0:01:38]} 21. Qd2 {[%clk 0:02:06]}  Qh5 {[%clk 0:01:30]} 22. Rce1 {[%clk 0:01:47]}  Nb8 {[%clk 0:01:23]} 23. Qxa5 {[%clk 0:01:41]}  c5 {[%clk 0:01:11]} 24. Bxf6 {[%clk 0:01:34]}  Rxf6 {[%clk 0:01:12]} 25. Kh1 {[%clk 0:01:31]}  Rg6 {[%clk 0:01:10]} 26. Qd2 {[%clk 0:01:25]}  Nd7 {[%clk 0:01:10]} 27. Ng5 {[%clk 0:01:24]}  Nf6 {[%clk 0:01:06]} 28. e4 {[%clk 0:01:20]}  fxe4 {[%clk 0:01:02]} 29. dxe4 {[%clk 0:01:20]}  Ng4 {[%clk 0:00:58]} 30. Qe2 {[%clk 0:00:52]}  h6 {[%clk 0:00:58]} 31. Rg1 {[%clk 0:00:41]}  Rxg5 {[%clk 0:00:42]} 32. fxg5 {[%clk 0:00:39]}  Rxe4 {[%clk 0:00:43]} 33. Qg2 {[%clk 0:00:40]}  Nxh2 {[%clk 0:00:36]} 34. Qxe4 {[%clk 0:00:32]}  Ng4+ {[%clk 0:00:27]} 35. Kg2 {[%clk 0:00:32]}  Qh2+ {[%clk 0:00:28]} 36. Kf3 {[%clk 0:00:32]}  Ne5+ {[%clk 0:00:19]} 37. Ke3 {[%clk 0:00:31]}  Qh3+ {[%clk 0:00:14]} 38. Ke2 {[%clk 0:00:29]}  Qxb3 {[%clk 0:00:08]} 39. gxh6 {[%clk 0:00:28]}  Qb2+ {[%clk 0:00:08]} 40. Kf1 {[%clk 0:00:27]}  Qb5+ {[%clk 0:00:08]} 41. Kg2 {[%clk 0:00:21]}  gxh6 {[%clk 0:00:09]} 42. Ref1 {[%clk 0:00:20]}  Qd7 {[%clk 0:00:02]} 43. Rf8+ {[%clk 0:00:18]}  Kg7 {[%clk 0:00:03]} 44. Qf5 {[%clk 0:00:18]} 1-0


[Site "https://www.chess.com"]

[Event "Titled Tuesday Blitz December 27 Late 2022"]
[White "Defend, Balint"]
[Black "Kravtsiv, Martyn"]
[WhiteFideId "17004853"]
[BlackFideId "14113147"]
[WhiteElo "1673"]
[BlackElo "2598"]
[Result "0-1"]
[Round "02"]
[TimeControl "180+2"]
[Date "2022.12.27"]
[WhiteClock "0:00:27"]
[BlackClock "0:00:06"]

1. e4 {[%clk 0:03:00]}  e5 {[%clk 0:02:59]} 2. Nf3 {[%clk 0:03:01]}  Nc6 {[%clk 0:02:59]} 3. Bc4 {[%clk 0:03:01]}  Nf6 {[%clk 0:02:59]} 4. d4 {[%clk 0:03:02]}  exd4 {[%clk 0:02:58]} 5. e5 {[%clk 0:03:02]}  d5 {[%clk 0:02:57]} 6. Bb5 {[%clk 0:03:02]}  Ne4 {[%clk 0:02:57]} 7. Nxd4 {[%clk 0:03:03]}  Bd7 {[%clk 0:02:58]} 8. Bxc6 {[%clk 0:02:58]}  bxc6 {[%clk 0:02:59]} 9. O-O {[%clk 0:02:59]}  Bc5 {[%clk 0:02:58]} 10. f3 {[%clk 0:02:58]}  Ng5 {[%clk 0:02:54]} 11. Be3 {[%clk 0:02:57]}  Bb6 {[%clk 0:02:53]} 12. f4 {[%clk 0:02:46]}  Ne4 {[%clk 0:02:52]} 13. Nd2 {[%clk 0:02:45]}  Nxd2 {[%clk 0:02:51]} 14. Qxd2 {[%clk 0:02:46]}  c5 {[%clk 0:02:51]} 15. Nf3 {[%clk 0:02:40]}  d4 {[%clk 0:02:49]} 16. Bf2 {[%clk 0:02:40]}  Bc6 {[%clk 0:02:50]} 17. c4 {[%clk 0:02:39]}  Qd7 {[%clk 0:02:40]} 18. e6 {[%clk 0:02:16]}  fxe6 {[%clk 0:02:34]} 19. Ne5 {[%clk 0:02:16]}  Qd6 {[%clk 0:02:34]} 20. a4 {[%clk 0:02:13]}  a5 {[%clk 0:02:32]} 21. Bg3 {[%clk 0:02:09]}  O-O {[%clk 0:02:21]} 22. b3 {[%clk 0:02:04]}  Bb7 {[%clk 0:02:12]} 23. Rae1 {[%clk 0:02:03]}  Rf5 {[%clk 0:02:11]} 24. Nd3 {[%clk 0:01:59]}  Re8 {[%clk 0:02:03]} 25. Re5 {[%clk 0:01:59]}  Qc6 {[%clk 0:01:53]} 26. Rfe1 {[%clk 0:01:58]}  h6 {[%clk 0:01:52]} 27. Qe2 {[%clk 0:01:51]}  Kh7 {[%clk 0:01:48]} 28. Qd2 {[%clk 0:01:33]}  Qd7 {[%clk 0:01:42]} 29. Qe2 {[%clk 0:01:27]}  Qc6 {[%clk 0:01:41]} 30. Qd2 {[%clk 0:01:27]}  Rf6 {[%clk 0:01:40]} 31. Qe2 {[%clk 0:01:24]}  Ref8 {[%clk 0:01:38]} 32. Qc2 {[%clk 0:01:21]}  Kh8 {[%clk 0:01:37]} 33. R5e2 {[%clk 0:01:18]}  Qe8 {[%clk 0:01:31]} 34. Re5 {[%clk 0:01:16]}  Qc6 {[%clk 0:01:21]} 35. R5e2 {[%clk 0:01:15]}  Ba8 {[%clk 0:01:19]} 36. Ne5 {[%clk 0:01:10]}  Qe8 {[%clk 0:01:18]} 37. Bh4 {[%clk 0:01:10]}  Rf5 {[%clk 0:01:12]} 38. Bg3 {[%clk 0:01:02]}  Bb7 {[%clk 0:01:04]} 39. Qd2 {[%clk 0:01:00]}  Bc8 {[%clk 0:01:00]} 40. Nd3 {[%clk 0:00:58]}  Qh5 {[%clk 0:00:58]} 41. Re5 {[%clk 0:00:56]}  Kg8 {[%clk 0:00:54]} 42. Rxf5 {[%clk 0:00:56]}  Rxf5 {[%clk 0:00:50]} 43. Ne5 {[%clk 0:00:51]}  Qe8 {[%clk 0:00:45]} 44. Qd3 {[%clk 0:00:49]}  Bb7 {[%clk 0:00:45]} 45. Qe2 {[%clk 0:00:47]}  Rf6 {[%clk 0:00:37]} 46. Nd3 {[%clk 0:00:47]}  Qc6 {[%clk 0:00:29]} 47. Qd2 {[%clk 0:00:47]}  Qd7 {[%clk 0:00:24]} 48. Re5 {[%clk 0:00:47]}  Rf5 {[%clk 0:00:21]} 49. Re2 {[%clk 0:00:45]}  Bc8 {[%clk 0:00:21]} 50. Qe1 {[%clk 0:00:45]}  Qf7 {[%clk 0:00:20]} 51. Ne5 {[%clk 0:00:44]}  Qh5 {[%clk 0:00:20]} 52. Nc6 {[%clk 0:00:44]}  Qe8 {[%clk 0:00:14]} 53. Ne5 {[%clk 0:00:44]}  Kh8 {[%clk 0:00:11]} 54. Qb1 {[%clk 0:00:44]}  c6 {[%clk 0:00:09]} 55. Nf3 {[%clk 0:00:43]}  Qf7 {[%clk 0:00:09]} 56. Re5 {[%clk 0:00:42]}  Bc7 {[%clk 0:00:08]} 57. Rxf5 {[%clk 0:00:42]}  Qxf5 {[%clk 0:00:07]} 58. Qxf5 {[%clk 0:00:42]}  exf5 {[%clk 0:00:08]} 59. Ne1 {[%clk 0:00:43]}  Bd6 {[%clk 0:00:07]} 60. Kf2 {[%clk 0:00:43]}  Be6 {[%clk 0:00:07]} 61. Nd3 {[%clk 0:00:42]}  Kg8 {[%clk 0:00:08]} 62. Kf3 {[%clk 0:00:43]}  Bf7 {[%clk 0:00:08]} 63. Kf2 {[%clk 0:00:42]}  Bh5 {[%clk 0:00:09]} 64. Ke1 {[%clk 0:00:43]}  Kf7 {[%clk 0:00:08]} 65. Kd2 {[%clk 0:00:43]}  Ke6 {[%clk 0:00:08]} 66. Kc2 {[%clk 0:00:43]}  g5 {[%clk 0:00:07]} 67. fxg5 {[%clk 0:00:42]}  hxg5 {[%clk 0:00:08]} 68. Be1 {[%clk 0:00:40]}  f4 {[%clk 0:00:08]} 69. Bxa5 {[%clk 0:00:39]}  g4 {[%clk 0:00:07]} 70. Be1 {[%clk 0:00:39]}  Bg6 {[%clk 0:00:07]} 71. Kd2 {[%clk 0:00:39]}  Be4 {[%clk 0:00:07]} 72. g3 {[%clk 0:00:38]}  f3 {[%clk 0:00:07]} 73. Bf2 {[%clk 0:00:38]}  Kd7 {[%clk 0:00:07]} 74. a5 {[%clk 0:00:38]}  Kc8 {[%clk 0:00:07]} 75. b4 {[%clk 0:00:36]}  cxb4 {[%clk 0:00:06]} 76. c5 {[%clk 0:00:36]}  Bf8 {[%clk 0:00:06]} 77. Bxd4 {[%clk 0:00:37]}  Bh6+ {[%clk 0:00:06]} 78. Kc2 {[%clk 0:00:34]}  b3+ {[%clk 0:00:05]} 79. Kc3 {[%clk 0:00:35]}  Bxd3 {[%clk 0:00:05]} 80. Kxd3 {[%clk 0:00:34]}  Bc1 {[%clk 0:00:06]} 81. a6 {[%clk 0:00:31]}  Kb8 {[%clk 0:00:06]} 82. Bc3 {[%clk 0:00:26]}  b2 {[%clk 0:00:05]} 83. Bxb2 {[%clk 0:00:27]}  Bxb2 {[%clk 0:00:05]} 84. Ke3 {[%clk 0:00:27]}  Bd4+ {[%clk 0:00:05]} 85. Kd3 {[%clk 0:00:27]}  f2 {[%clk 0:00:05]} 86. Ke2 {[%clk 0:00:27]}  Bxc5 {[%clk 0:00:06]} 0-1


[Site "https://www.chess.com"]

[Event "Titled Tuesday Blitz December 27 Late 2022"]
[White "Desideri, Ricardo Maruchi"]
[Black "Arencibia Monduy, Antonio"]
[WhiteFideId "2110440"]
[BlackFideId "3507939"]
[WhiteElo "1959"]
[BlackElo "2122"]
[Result "0-1"]
[Round "02"]
[TimeControl "180+2"]
[Date "2022.12.27"]
[WhiteClock "0:00:06"]
[BlackClock "0:00:30"]

1. e4 {[%clk 0:03:00]}  e6 {[%clk 0:02:59]} 2. d4 {[%clk 0:02:56]}  c5 {[%clk 0:03:00]} 3. Nf3 {[%clk 0:02:54]}  cxd4 {[%clk 0:02:59]} 4. Nxd4 {[%clk 0:02:53]}  Nc6 {[%clk 0:03:00]} 5. Nc3 {[%clk 0:02:51]}  Qc7 {[%clk 0:03:00]} 6. Be3 {[%clk 0:02:46]}  a6 {[%clk 0:03:01]} 7. Qd2 {[%clk 0:02:36]}  b5 {[%clk 0:03:00]} 8. a3 {[%clk 0:02:32]}  Bb7 {[%clk 0:03:00]} 9. f4 {[%clk 0:02:30]}  Nf6 {[%clk 0:02:38]} 10. Be2 {[%clk 0:02:22]}  Nxd4 {[%clk 0:02:23]} 11. Qxd4 {[%clk 0:02:20]}  Rc8 {[%clk 0:02:10]} 12. g4 {[%clk 0:02:17]}  d5 {[%clk 0:02:00]} 13. e5 {[%clk 0:02:06]}  Ne4 {[%clk 0:01:52]} 14. Nxe4 {[%clk 0:01:55]}  dxe4 {[%clk 0:01:53]} 15. Rd1 {[%clk 0:01:54]}  Bd5 {[%clk 0:01:33]} 16. Rd2 {[%clk 0:01:42]}  Be7 {[%clk 0:01:31]} 17. O-O {[%clk 0:01:39]}  O-O {[%clk 0:01:32]} 18. b3 {[%clk 0:01:37]}  Qb7 {[%clk 0:01:24]} 19. c4 {[%clk 0:01:32]}  Bc5 {[%clk 0:01:17]} 20. Qxc5 {[%clk 0:01:24]}  Rxc5 {[%clk 0:01:16]} 21. Bxc5 {[%clk 0:01:25]}  Rc8 {[%clk 0:01:10]} 22. Be3 {[%clk 0:01:06]}  bxc4 {[%clk 0:01:06]} 23. bxc4 {[%clk 0:01:00]}  Bc6 {[%clk 0:01:03]} 24. Rfd1 {[%clk 0:00:58]}  h6 {[%clk 0:00:56]} 25. f5 {[%clk 0:00:46]}  Qe7 {[%clk 0:00:49]} 26. c5 {[%clk 0:00:33]}  a5 {[%clk 0:00:31]} 27. f6 {[%clk 0:00:22]}  gxf6 {[%clk 0:00:30]} 28. Bxh6 {[%clk 0:00:22]}  Qxc5+ {[%clk 0:00:30]} 29. Kf1 {[%clk 0:00:16]}  Qxe5 {[%clk 0:00:30]} 30. Rd8+ {[%clk 0:00:13]}  Rxd8 {[%clk 0:00:31]} 31. Rxd8+ {[%clk 0:00:13]}  Kh7 {[%clk 0:00:32]} 32. Be3 {[%clk 0:00:12]}  Bb5 {[%clk 0:00:29]} 33. Bxb5 {[%clk 0:00:07]}  Qxb5+ {[%clk 0:00:30]} 34. Kf2 {[%clk 0:00:08]}  Qb2+ {[%clk 0:00:29]} 35. Kg3 {[%clk 0:00:06]}  Qxa3 {[%clk 0:00:30]} 0-1


[Site "https://www.chess.com"]

[Event "Titled Tuesday Blitz December 27 Late 2022"]
[White "Domingo Nunez, Ruben"]
[Black "Osinenko, Anton"]
[WhiteFideId "22245570"]
[BlackFideId "4158970"]
[WhiteElo "2416"]
[BlackElo "2203"]
[Result "1-0"]
[Round "02"]
[TimeControl "180+2"]
[Date "2022.12.27"]
[WhiteClock "0:00:35"]
[BlackClock "0:00:07"]

1. Nf3 {[%clk 0:03:00]}  g6 {[%clk 0:02:58]} 2. e4 {[%clk 0:03:00]}  Bg7 {[%clk 0:02:58]} 3. g3 {[%clk 0:03:00]}  c5 {[%clk 0:02:58]} 4. Bg2 {[%clk 0:03:00]}  e6 {[%clk 0:02:58]} 5. O-O {[%clk 0:03:01]}  Nc6 {[%clk 0:02:57]} 6. c3 {[%clk 0:02:59]}  Nge7 {[%clk 0:02:56]} 7. d4 {[%clk 0:03:00]}  cxd4 {[%clk 0:02:57]} 8. cxd4 {[%clk 0:03:01]}  d5 {[%clk 0:02:57]} 9. e5 {[%clk 0:02:59]}  O-O {[%clk 0:02:56]} 10. Nc3 {[%clk 0:02:59]}  a6 {[%clk 0:02:56]} 11. Bg5 {[%clk 0:02:52]}  h6 {[%clk 0:02:54]} 12. Bf4 {[%clk 0:02:49]}  b5 {[%clk 0:02:43]} 13. Rc1 {[%clk 0:02:48]}  Qb6 {[%clk 0:02:35]} 14. h4 {[%clk 0:02:48]}  Nf5 {[%clk 0:02:27]} 15. Ne2 {[%clk 0:02:46]}  Bb7 {[%clk 0:02:23]} 16. Qd2 {[%clk 0:02:45]}  Kh7 {[%clk 0:02:20]} 17. g4 {[%clk 0:02:36]}  Nfe7 {[%clk 0:02:02]} 18. Ng3 {[%clk 0:02:35]}  Qa5 {[%clk 0:02:00]} 19. Qd3 {[%clk 0:02:01]}  Rac8 {[%clk 0:01:51]} 20. a3 {[%clk 0:01:55]}  b4 {[%clk 0:01:49]} 21. h5 {[%clk 0:01:56]}  Qb5 {[%clk 0:01:40]} 22. Qe3 {[%clk 0:01:39]}  bxa3 {[%clk 0:01:19]} 23. bxa3 {[%clk 0:01:40]}  Na5 {[%clk 0:01:19]} 24. Rb1 {[%clk 0:01:40]}  Qd7 {[%clk 0:01:17]} 25. Rfd1 {[%clk 0:01:21]}  Nc4 {[%clk 0:01:15]} 26. Qd3 {[%clk 0:01:21]}  Bc6 {[%clk 0:01:13]} 27. g5 {[%clk 0:01:14]}  Bb5 {[%clk 0:01:05]} 28. a4 {[%clk 0:01:07]}  Bxa4 {[%clk 0:01:02]} 29. gxh6 {[%clk 0:01:06]}  Bxh6 {[%clk 0:01:03]} 30. Bxh6 {[%clk 0:01:05]}  Kxh6 {[%clk 0:01:04]} 31. Rdc1 {[%clk 0:01:02]}  Rg8 {[%clk 0:00:50]} 32. Rxc4 {[%clk 0:00:43]}  Rxc4 {[%clk 0:00:50]} 33. Qe3+ {[%clk 0:00:44]}  g5 {[%clk 0:00:48]} 34. Nh2 {[%clk 0:00:44]}  Qc7 {[%clk 0:00:27]} 35. Ng4+ {[%clk 0:00:43]}  Kg7 {[%clk 0:00:28]} 36. Qxg5+ {[%clk 0:00:42]}  Kf8 {[%clk 0:00:26]} 37. Qh6+ {[%clk 0:00:42]}  Rg7 {[%clk 0:00:23]} 38. Nf6 {[%clk 0:00:38]}  Ng8 {[%clk 0:00:16]} 39. Nh7+ {[%clk 0:00:36]}  Ke8 {[%clk 0:00:06]} 40. Qxg7 {[%clk 0:00:37]}  Rc1+ {[%clk 0:00:07]} 41. Rxc1 {[%clk 0:00:36]}  Qxc1+ {[%clk 0:00:08]} 42. Kh2 {[%clk 0:00:37]}  Ne7 {[%clk 0:00:08]} 43. Qf8+ {[%clk 0:00:35]}  Kd7 {[%clk 0:00:08]} 44. Nf6+ {[%clk 0:00:36]}  Kc6 {[%clk 0:00:09]} 45. Qxe7 {[%clk 0:00:35]}  Qg5 {[%clk 0:00:09]} 46. Qd7+ {[%clk 0:00:35]}  Kb6 {[%clk 0:00:09]} 47. Qxa4 {[%clk 0:00:35]}  Qh4+ {[%clk 0:00:09]} 48. Kg1 {[%clk 0:00:35]}  a5 {[%clk 0:00:10]} 49. Nd7+ {[%clk 0:00:35]}  Kc7 {[%clk 0:00:10]} 50. Nc5 {[%clk 0:00:35]}  Qg5 {[%clk 0:00:08]} 51. Qd7+ {[%clk 0:00:34]}  Kb8 {[%clk 0:00:07]} 52. Qb7# {[%clk 0:00:35]} 1-0


[Site "https://www.chess.com"]

[Event "Titled Tuesday Blitz December 27 Late 2022"]
[White "Fernandez, Maria Florencia"]
[Black "Rangel, Daniel"]
[WhiteFideId "116459"]
[BlackFideId "2124475"]
[WhiteElo "2129"]
[BlackElo "2207"]
[Result "1-0"]
[Round "02"]
[TimeControl "180+2"]
[Date "2022.12.27"]
[WhiteClock "0:00:10"]
[BlackClock "0:00:06"]

1. d4 {[%clk 0:03:00]}  Nf6 {[%clk 0:02:58]} 2. c4 {[%clk 0:03:00]}  g6 {[%clk 0:02:59]} 3. Nc3 {[%clk 0:03:00]}  Bg7 {[%clk 0:02:59]} 4. e4 {[%clk 0:03:00]}  O-O {[%clk 0:03:00]} 5. Be2 {[%clk 0:03:01]}  c6 {[%clk 0:03:00]} 6. Be3 {[%clk 0:02:55]}  d5 {[%clk 0:03:00]} 7. cxd5 {[%clk 0:02:55]}  cxd5 {[%clk 0:03:01]} 8. e5 {[%clk 0:02:55]}  Ne4 {[%clk 0:03:02]} 9. Nf3 {[%clk 0:02:49]}  Nc6 {[%clk 0:02:56]} 10. O-O {[%clk 0:02:46]}  Nxc3 {[%clk 0:02:48]} 11. bxc3 {[%clk 0:02:45]}  b6 {[%clk 0:02:47]} 12. Qd2 {[%clk 0:02:41]}  Na5 {[%clk 0:02:46]} 13. Bh6 {[%clk 0:02:38]}  Bg4 {[%clk 0:02:41]} 14. Bxg7 {[%clk 0:02:35]}  Kxg7 {[%clk 0:02:42]} 15. Qf4 {[%clk 0:02:31]}  Bxf3 {[%clk 0:02:41]} 16. Bxf3 {[%clk 0:02:29]}  Rc8 {[%clk 0:02:40]} 17. Rac1 {[%clk 0:02:24]}  e6 {[%clk 0:02:39]} 18. h4 {[%clk 0:02:23]}  h5 {[%clk 0:02:38]} 19. Be2 {[%clk 0:02:13]}  Qe7 {[%clk 0:02:33]} 20. Rfd1 {[%clk 0:01:47]}  Rc7 {[%clk 0:02:32]} 21. Rd3 {[%clk 0:01:43]}  Rh8 {[%clk 0:01:58]} 22. Rg3 {[%clk 0:01:38]}  Nc4 {[%clk 0:01:48]} 23. Bd3 {[%clk 0:01:30]}  Nb2 {[%clk 0:01:38]} 24. Bb1 {[%clk 0:01:28]}  Na4 {[%clk 0:01:32]} 25. c4 {[%clk 0:00:48]}  dxc4 {[%clk 0:01:02]} 26. d5 {[%clk 0:00:48]}  Rc5 {[%clk 0:00:47]} 27. d6 {[%clk 0:00:47]}  Qd8 {[%clk 0:00:43]} 28. Rf3 {[%clk 0:00:37]}  Rf8 {[%clk 0:00:34]} 29. Rg3 {[%clk 0:00:37]}  Rh8 {[%clk 0:00:34]} 30. Qe4 {[%clk 0:00:34]}  c3 {[%clk 0:00:25]} 31. Qxa4 {[%clk 0:00:32]}  Rxe5 {[%clk 0:00:23]} 32. Qd4 {[%clk 0:00:32]}  f6 {[%clk 0:00:20]} 33. Bxg6 {[%clk 0:00:26]}  Kf8 {[%clk 0:00:17]} 34. Rcxc3 {[%clk 0:00:23]}  Rd5 {[%clk 0:00:18]} 35. Qb4 {[%clk 0:00:20]}  Rxd6 {[%clk 0:00:14]} 36. Rcd3 {[%clk 0:00:16]}  Ke7 {[%clk 0:00:14]} 37. Be4 {[%clk 0:00:13]}  Rh7 {[%clk 0:00:11]} 38. Bxh7 {[%clk 0:00:13]}  f5 {[%clk 0:00:06]} 39. Rxd6 {[%clk 0:00:10]}  Kf6 {[%clk 0:00:06]} 40. Rxd8 {[%clk 0:00:10]} 1-0


[Site "https://www.chess.com"]